bitfinex-derivatives/quotes_ETHF0:USTF0_20230402
["timestamp","ask_amount","ask_price","bid_price","bid_amount"]
[1680442479255,1.0,1816.7,1816.4,0.57230854]
[1680442479654,1.57590361,1816.7,1816.4,0.57230854]
[1680442480051,0.57590361,1816.7,1816.4,0.57230854]
[1680442481457,0.57590361,1816.8,1816.4,1.44020267]
[1680442482153,0.57590361,1816.8,1816.4,1.57230854]
[1680442482967,0.57590361,1816.8,1816.5,0.57230854]
[1680442483162,0.57590361,1816.8,1816.5,3.78010854]
[1680442483359,0.57590361,1816.8,1816.5,3.2078]
[1680442483553,0.57590361,1816.8,1816.5,3.78010854]
[1680442484357,1.43762067,1816.9,1816.5,3.78010854]
[1680442484664,0.57590361,1816.8,1816.5,3.78010854]
[1680442485658,4.79542067,1817.0,1816.6,0.57230854]
[1680442485868,3.93370361,1817.0,1816.6,1.57230854]
[1680442486068,3.93370361,1817.0,1816.6,0.57230854]
[1680442486367,3.93370361,1817.0,1816.6,1.44020267]
[1680442486974,3.93370361,1817.0,1816.7,0.51091081]
[1680442487466,3.93370361,1817.0,1816.6,2.44020267]
[1680442487767,3.93370361,1817.0,1816.6,1.44020267]
[1680442489569,3.93370361,1817.0,1816.6,0.57230854]
[1680442489968,3.93370361,1817.0,1816.6,1.44020267]
[1680442490373,3.93370361,1817.0,1816.6,0.86789413]
[1680442494575,0.57590361,1816.9,1816.6,0.86789413]
[1680442494969,1.57590361,1816.9,1816.6,0.86789413]
[1680442495174,1.57590361,1816.9,1816.5,0.86789413]
[1680442495571,3.78370361,1816.8,1816.4,0.86789413]
[1680442495869,1.0,1816.7,1816.4,0.86789413]
[1680442496068,1.57590361,1816.7,1816.4,0.86789413]
[1680442496676,0.57590361,1816.7,1816.4,0.86789413]
[1680442497176,0.57590361,1816.7,1816.3,4.07569413]
[1680442497570,0.57590361,1816.6,1816.5,0.86789413]
[1680442497973,0.57590361,1816.6,1816.4,0.86789413]
[1680442498175,0.57590361,1816.6,1816.5,0.86789413]
[1680442499576,0.57590361,1816.6,1816.4,0.86789413]
[1680442499781,0.57590361,1816.6,1816.5,0.86789413]
[1680442500080,0.57590361,1816.6,1816.4,0.86789413]
[1680442503281,0.57590361,1816.6,1816.5,0.86789413]
[1680442503581,0.86171706,1816.8,1816.5,0.86789413]
[1680442503582,0.57590361,1816.7,1816.5,4.07569413]
[1680442504382,0.57590361,1816.7,1816.6,0.86789413]
[1680442504783,1.43762067,1816.8,1816.6,0.86789413]
[1680442505381,0.57590361,1816.7,1816.6,0.86789413]
[1680442505983,0.57590361,1816.7,1816.6,1.31279932]
[1680442507889,0.57590361,1816.7,1816.6,0.44490519]
[1680442513694,1.43762067,1816.7,1816.6,0.44490519]
[1680442514297,0.57590361,1816.7,1816.6,1.31279932]
[1680442516696,0.86171706,1816.8,1816.6,1.31279932]
[1680442516697,0.57590361,1816.8,1816.6,1.44490519]
[1680442516892,0.57590361,1816.9,1816.6,2.60079995]
[1680442517197,0.57590361,1816.9,1816.8,0.86209248]
[1680442517595,0.57590361,1816.9,1816.8,1.40158695]
[1680442518199,1.01171706,1817.0,1816.8,1.22197406]
[1680442518200,0.15,1817.0,1816.8,1.22197406]
[1680442518498,0.15,1817.0,1816.9,5.3566886]
[1680442519297,0.15,1817.0,1816.9,4.06949747]
[1680442519495,0.15,1817.0,1816.9,4.06946919]
[1680442522608,0.15,1817.0,1816.8,1.40116366]
[1680442523206,0.15,1817.0,1816.9,0.86166919]
[1680442523405,0.15,1817.0,1816.8,1.40116366]
[1680442523603,0.72590361,1817.0,1816.8,0.53949447]
[1680442523804,2.58762067,1817.0,1816.8,0.53949447]
[1680442524003,0.57590361,1816.9,1816.8,0.53949447]
[1680442524203,0.57590361,1816.9,1816.8,0.39390468]
[1680442524409,1.57590361,1816.9,1816.8,0.39390468]
[1680442525315,1.57188627,1816.9,1816.8,0.39390468]
[1680442525507,0.57188627,1816.9,1816.8,0.39390468]
[1680442527001,0.15,1817.0,1816.8,0.39390468]
[1680442527208,0.15,1817.0,1816.9,4.3566886]
[1680442527405,0.15,1817.0,1816.9,5.06899309]
[1680442527606,0.15,1817.0,1816.9,4.2078]
[1680442527806,0.15,1817.0,1816.9,3.2078]
[1680442528201,0.15,1817.0,1816.9,4.06895904]
[1680442528405,0.15,1817.0,1816.9,3.2078]
[1680442528613,0.15,1817.0,1816.9,4.06866818]
[1680442530715,0.86171706,1817.3,1816.9,4.06866818]
[1680442532708,0.86171706,1817.4,1817.1,3.2078]
[1680442534212,1.0,1817.3,1817.1,3.2078]
[1680442534512,0.86171706,1817.5,1817.2,1.0]
[1680442534718,4.06951706,1817.8,1817.4,3.2078]
[1680442534920,1.0,1817.7,1817.4,3.2078]
[1680442536617,5.06951706,1817.8,1817.4,3.2078]
[1680442536819,4.06951706,1817.8,1817.4,3.2078]
[1680442538412,3.2078,1817.8,1817.4,3.2078]
[1680442538814,1.0,1817.7,1817.1,9.59066818]
[1680442539113,1.0,1817.7,1817.3,3.2078]
[1680442540122,1.0,1817.7,1817.2,0.66578295]
[1680442540123,3.2078,1817.6,1817.2,0.66578295]
[1680442540315,1.0,1817.5,1817.2,0.66578295]
[1680442540824,3.2078,1817.4,1816.8,0.86086818]
[1680442541118,3.2078,1817.2,1816.7,0.86086818]
[1680442541320,1.0,1817.1,1816.7,1.86086818]
[1680442541519,1.0,1817.1,1816.7,0.86086818]
[1680442541817,3.2078,1817.2,1816.7,4.06866818]
[1680442542022,1.0,1817.1,1816.7,0.86086818]
[1680442542419,1.0,1817.1,1816.6,0.86086818]
[1680442542621,3.2078,1817.0,1816.5,4.06866818]
[1680442542814,1.0,1816.9,1816.5,4.06866818]
[1680442545016,3.2078,1816.8,1816.5,0.86086818]
[1680442545219,1.0,1816.7,1816.4,0.86086818]
[1680442545419,3.2078,1816.8,1816.4,0.86086818]
[1680442548331,1.0,1816.7,1816.4,0.86086818]
[1680442549124,3.2078,1816.8,1816.4,0.86086818]
[1680442549325,3.2078,1816.8,1816.3,4.06866818]
[1680442549725,1.0,1816.7,1816.3,4.06866818]
[1680442550231,3.2078,1816.8,1816.3,4.06866818]
[1680442551724,1.0,1816.9,1816.3,4.06866818]
[1680442551925,1.0,1817.0,1816.4,0.86086818]
[1680442552130,3.2078,1816.9,1816.5,3.2078]
[1680442554227,3.2078,1816.9,1816.6,0.19344006]
[1680442557039,3.2078,1816.9,1816.4,0.86086818]
[1680442557335,1.0,1816.8,1816.4,0.86086818]
[1680442563045,3.2078,1816.7,1816.4,0.86086818]
[1680442563947,3.2078,1816.9,1816.4,0.86086818]
[1680442565548,1.0,1816.8,1816.4,4.06866818]
[1680442566448,1.0,1816.8,1816.4,0.86086818]
[1680442566641,1.0,1816.8,1816.2,4.3566886]
[1680442566642,1.0,1816.8,1816.3,0.86086818]
[1680442566846,3.2078,1816.7,1816.4,0.86086818]
[1680442567042,1.0,1816.6,1816.4,0.86086818]
[1680442567251,1.0,1816.6,1816.3,0.86086818]
[1680442567747,3.24943986,1816.7,1816.3,0.86086818]
[1680442568050,1.0,1816.6,1816.3,0.86086818]
[1680442568851,3.24943986,1816.7,1816.3,0.86086818]
[1680442570355,1.0,1816.6,1816.3,0.86086818]
[1680442570751,0.04125859,1816.5,1816.3,0.86086818]
[1680442571849,3.24905859,1816.5,1816.3,0.86086818]
[1680442572156,0.04125859,1816.5,1816.3,0.86086818]
[1680442572963,3.2078,1816.7,1816.3,0.86086818]
[1680442573859,1.0,1816.6,1816.2,0.86086818]
[1680442574253,3.2078,1816.7,1816.2,0.86086818]
[1680442574857,1.0,1816.6,1816.2,0.86086818]
[1680442575051,3.2078,1816.5,1816.2,0.86086818]
[1680442576460,3.2078,1816.7,1816.2,4.06866818]
[1680442577563,3.2078,1816.7,1816.2,0.86086818]
[1680442577964,3.2078,1816.7,1816.2,4.06866818]
[1680442580665,3.2078,1816.7,1816.3,0.86086818]
[1680442582364,4.7234,1817.0,1816.4,4.06866818]
[1680442582554,4.7234,1817.0,1816.5,0.86086818]
[1680442582756,5.58511706,1817.0,1816.5,0.86086818]
[1680442582956,4.7234,1817.0,1816.5,0.86086818]
[1680442583158,0.002,1817.0,1816.5,0.86086818]
[1680442584468,3.32156219,1816.9,1816.6,0.86086818]
[1680442584665,4.18327925,1816.9,1816.6,0.86086818]
[1680442584962,3.32156219,1816.9,1816.6,0.86086818]
[1680442585769,4.18327925,1816.9,1816.6,0.86086818]
[1680442586666,0.86171706,1816.8,1816.7,0.86086818]
[1680442586869,1.86171706,1816.8,1816.7,0.86086818]
[1680442590268,2.15488025,1816.8,1816.6,0.86086818]
[1680442590463,4.07363649,1816.7,1816.6,0.86086818]
[1680442590867,3.2078,1816.7,1816.5,0.86086818]
[1680442591063,1.86593368,1816.6,1816.5,0.86086818]
[1680442592863,1.0,1816.6,1816.5,0.86086818]
[1680442593064,1.86593368,1816.6,1816.5,0.86086818]
[1680442593267,4.07373368,1816.7,1816.4,1.1488886]
[1680442593464,4.07373368,1816.7,1816.6,0.86246606]
[1680442594361,4.07373368,1816.7,1816.5,0.86246606]
[1680442594767,4.07373368,1816.7,1816.6,0.86246606]
[1680442597764,4.07373368,1816.7,1816.6,0.85642243]
[1680442599168,4.07373368,1816.7,1816.4,1.1488886]
[1680442599473,4.18777088,1816.7,1816.4,1.1488886]
[1680442599773,3.2078,1816.5,1816.4,1.1488886]
[1680442600574,3.2078,1816.5,1816.3,1.1488886]
[1680442600771,1.0,1816.4,1816.3,1.1488886]
[1680442600975,1.0,1816.4,1816.3,1.83159891]
[1680442601477,1.831,1816.3,1816.1,1.1488886]
[1680442601970,1.831,1816.3,1816.2,1.1488886]
[1680442602165,4.2078,1816.4,1816.2,1.1488886]
[1680442602571,3.2078,1816.4,1816.2,1.1488886]
[1680442603166,3.2078,1816.4,1816.3,1.1488886]
[1680442603875,3.2078,1816.4,1816.2,1.1488886]
[1680442605071,3.2078,1816.4,1816.3,1.1488886]
[1680442605777,3.2078,1816.4,1816.2,1.1488886]
[1680442606280,5.07373368,1816.6,1816.3,1.1488886]
[1680442606482,3.2078,1816.4,1816.2,1.1488886]
[1680442606780,1.86593368,1816.6,1816.3,1.1488886]
[1680442606781,5.07373368,1816.6,1816.3,1.1488886]
[1680442609383,0.86593368,1816.6,1816.3,1.1488886]
[1680442610285,0.86593368,1816.6,1816.5,0.5748491]
[1680442614386,1.10422504,1816.6,1816.5,0.5748491]
[1680442614689,4.31202504,1816.6,1816.5,0.5748491]
[1680442634705,3.44609136,1816.6,1816.5,0.5748491]
[1680442636707,4.60097161,1816.6,1816.4,1.1488886]
[1680442636903,0.86620974,1816.5,1816.4,1.1488886]
[1680442637103,1.86620974,1816.5,1816.4,1.1488886]
[1680442637300,1.10449447,1816.5,1816.4,1.1488886]
[1680442637704,1.10449447,1816.5,1816.4,2.12588371]
[1680442637705,0.23828473,1816.5,1816.4,2.12588371]
[1680442638098,0.86620974,1816.7,1816.4,2.12588371]
[1680442638304,5.07400974,1816.8,1816.5,1.14999934]
[1680442638512,4.07400974,1816.8,1816.7,0.57499207]
[1680442638711,4.07400974,1816.8,1816.6,2.14999934]
[1680442638899,4.07400974,1816.8,1816.6,1.14999934]
[1680442639320,0.86620974,1816.8,1816.6,1.83260625]
[1680442639909,0.86620974,1816.8,1816.6,1.14999934]
[1680442640206,0.86620974,1816.9,1816.6,5.040389]
[1680442640412,1.86620974,1816.9,1816.8,0.57471986]
[1680442642615,0.86620974,1816.9,1816.8,0.57471986]
[1680442643815,1.86620974,1816.9,1816.8,0.57471986]
[1680442644014,1.86620974,1816.9,1816.7,0.57471986]
[1680442644213,1.86620974,1816.9,1816.8,0.57471986]
[1680442644519,1.86620974,1816.9,1816.7,0.57471986]
[1680442645321,5.07400974,1816.8,1816.7,0.57471986]
[1680442645520,5.65087174,1816.8,1816.7,0.57471986]
[1680442645819,4.784662,1816.8,1816.7,0.57471986]
[1680442646415,5.07400974,1816.8,1816.7,0.57471986]
[1680442646722,4.78462209,1816.8,1816.7,0.57471986]
[1680442648420,3.78462209,1816.8,1816.7,0.57471986]
[1680442650828,3.78041497,1816.8,1816.7,0.57471986]
[1680442653129,0.57682209,1816.8,1816.7,0.57471986]
[1680442656339,3.78462209,1816.8,1816.7,0.57471986]
[1680442657837,0.57682209,1816.8,1816.7,0.57471986]
[1680442658235,0.57682209,1816.8,1816.7,2.01149088]
[1680442658432,3.78462209,1817.0,1816.7,2.14999934]
[1680442658630,3.78462209,1817.0,1816.8,0.8612332]
[1680442658832,3.78462209,1817.0,1816.9,0.57415546]
[1680442659143,3.78462209,1817.0,1816.8,1.43538866]
[1680442659331,3.78462209,1817.0,1816.9,0.57415546]
[1680442659533,3.78462209,1817.0,1816.8,1.43538866]
[1680442660233,3.78462209,1817.0,1816.9,0.57415546]
[1680442660441,3.78462209,1817.0,1816.8,1.43538866]
[1680442660834,3.78462209,1817.0,1816.8,0.57415546]
[1680442662037,0.36913558,1817.1,1816.8,1.43538866]
[1680442662340,0.57635175,1817.1,1817.0,3.2078]
[1680442662544,0.57635175,1817.3,1817.0,3.2078]
[1680442662752,0.57635175,1817.3,1817.1,1.43403697]
[1680442663044,0.57635175,1817.3,1817.1,2.43403697]
[1680442663247,0.57635175,1817.4,1817.1,1.57361479]
[1680442663837,0.57635175,1817.4,1817.1,2.43403697]
[1680442665240,0.57635175,1817.4,1817.2,1.0]
[1680442665433,0.57635175,1817.6,1817.3,0.57361479]
[1680442665638,0.57635175,1817.6,1817.4,3.2078]
[1680442665936,1.57635175,1817.7,1817.4,3.2078]
[1680442666135,0.57635175,1817.7,1817.4,3.2078]
[1680442666735,0.57635175,1817.7,1817.3,0.57361479]
[1680442666938,1.57635175,1817.7,1817.2,5.64183697]
[1680442667348,1.57635175,1817.7,1817.4,3.2078]
[1680442667645,0.57635175,1817.7,1817.4,3.2078]
[1680442667841,4.78415175,1817.8,1817.4,3.2078]
[1680442668344,3.78415175,1817.8,1817.4,3.2078]
[1680442669537,0.57635175,1817.8,1817.4,3.2078]
[1680442670145,1.57635175,1817.9,1817.4,3.2078]
[1680442670346,3.78415175,1817.8,1817.4,3.2078]
[1680442670648,1.0,1817.7,1817.1,1.43403697]
[1680442670841,3.2078,1817.6,1817.0,1.43403697]
[1680442671040,1.0,1817.5,1817.0,0.57361479]
[1680442671240,3.2078,1817.4,1817.0,0.57361479]
[1680442671642,3.2078,1817.4,1817.0,3.78141479]
[1680442672843,3.2078,1817.4,1817.0,0.57361479]
[1680442673238,3.2078,1817.4,1817.0,3.78141479]
[1680442674448,3.2078,1817.6,1817.1,0.78059895]
[1680442674650,1.0,1817.5,1817.1,0.20698416]
[1680442675041,3.2078,1817.6,1817.1,0.20698416]
[1680442681660,3.2078,1817.6,1817.1,1.20698416]
[1680442681858,0.57635175,1817.7,1817.1,1.78059895]
[1680442682060,4.78415175,1817.8,1817.2,3.2078]
[1680442682757,0.57635175,1817.7,1817.2,3.2078]
[1680442682956,4.78415175,1817.8,1817.2,3.2078]
[1680442683553,3.78415175,1817.8,1817.2,3.2078]
[1680442684161,3.78415175,1817.8,1817.3,1.0]
[1680442685456,3.2078,1817.8,1817.3,1.0]
[1680442685955,3.2078,1817.8,1817.2,4.78141479]
[1680442686755,3.2078,1817.8,1817.2,3.78141479]
[1680442687259,3.2078,1817.8,1817.3,1.0]
[1680442687765,3.2078,1817.8,1817.4,3.2078]
[1680442688061,3.88415175,1818.0,1817.6,3.2078]
[1680442689061,3.3078,1818.0,1817.6,3.2078]
[1680442689253,3.3078,1818.0,1817.7,0.45711938]
[1680442689452,0.1,1818.0,1817.8,1.0]
[1680442689655,0.1,1818.0,1817.8,4.2078]
[1680442690056,0.1,1818.0,1817.9,1.0]
[1680442690260,0.1,1818.0,1817.9,6.522]
[1680442690461,0.57635175,1818.6,1817.9,6.522]
[1680442690662,0.57635175,1818.6,1818.4,3.2078]
[1680442690857,0.57635175,1818.7,1818.4,3.2078]
[1680442691360,1.57635175,1818.9,1818.4,3.2078]
[1680442691561,0.57635175,1818.9,1818.4,3.2078]
[1680442691770,0.15,1819.0,1818.8,3.2078]
[1680442692756,0.15,1819.0,1818.9,1.0]
[1680442693162,0.15,1819.0,1818.8,8.7298]
[1680442693359,0.15,1819.0,1818.8,3.2078]
[1680442693570,0.15,1819.0,1818.4,0.57361479]
[1680442693571,0.15,1819.0,1818.4,3.2078]
[1680442693966,3.3578,1819.0,1818.4,3.2078]
[1680442694165,1.0,1818.9,1818.4,3.2078]
[1680442694365,1.0,1818.9,1818.2,4.2078]
[1680442694568,3.2078,1818.6,1818.0,3.2078]
[1680442694970,1.0,1818.5,1818.0,3.2078]
[1680442696070,3.2078,1818.4,1818.0,3.2078]
[1680442696373,1.0,1818.3,1818.0,3.2078]
[1680442696773,3.2078,1818.4,1818.0,3.2078]
[1680442698275,3.2078,1818.4,1817.8,3.2078]
[1680442700280,0.002,1818.0,1817.8,3.2078]
[1680442700581,0.002,1818.0,1817.7,0.45711938]
[1680442700777,1.002,1818.0,1817.7,0.45711938]
[1680442701076,0.002,1818.0,1817.6,3.2078]
[1680442701677,0.002,1818.0,1817.4,3.2078]
[1680442701872,3.2078,1817.9,1817.5,1.0]
[1680442702277,3.2078,1817.9,1817.4,3.2078]
[1680442702278,1.0,1817.8,1817.4,3.2078]
[1680442702474,3.2078,1817.9,1817.4,3.2078]
[1680442703180,3.2078,1817.7,1817.2,3.2078]
[1680442704379,3.2078,1817.7,1817.3,0.04855855]
[1680442704574,3.2078,1817.7,1817.3,1.04855855]
[1680442704875,3.2078,1817.7,1817.3,0.04855855]
[1680442706482,3.2078,1817.7,1817.3,1.04855855]
[1680442706781,3.2078,1817.9,1817.4,3.2078]
[1680442708381,3.2078,1817.9,1817.5,1.0]
[1680442708578,3.2098,1818.0,1817.6,3.2078]
[1680442708781,3.2098,1818.0,1817.4,3.2078]
[1680442709284,3.2098,1818.0,1817.6,3.2078]
[1680442710885,3.2098,1818.0,1817.4,3.2078]
[1680442719485,3.2098,1818.0,1817.5,0.04327269]
[1680442719892,3.2078,1817.6,1817.5,0.04327269]
[1680442720087,3.2078,1817.6,1817.2,3.2078]
[1680442724589,0.08700038,1817.5,1817.2,3.2078]
[1680442724783,1.08700038,1817.5,1817.2,3.2078]
[1680442724995,0.08700038,1817.5,1817.2,3.2078]
[1680442727196,2.29480038,1817.6,1817.2,3.2078]
[1680442727392,0.07504285,1817.5,1817.2,3.2078]
[1680442727597,1.07504285,1817.5,1817.0,0.57361479]
[1680442727894,4.28284285,1817.5,1816.9,3.2078]
[1680442730201,4.28284285,1817.5,1816.7,3.78141479]
[1680442730497,3.2078,1817.3,1816.7,3.78141479]
[1680442733103,3.2078,1817.3,1816.8,1.0]
[1680442733903,3.2078,1817.3,1816.7,3.78141479]
[1680442734107,0.07504285,1817.5,1817.0,3.2078]
[1680442734700,3.28284285,1817.5,1817.0,3.2078]
[1680442735002,0.27131327,1817.5,1817.2,3.2078]
[1680442735399,0.27131327,1817.5,1817.0,3.2078]
[1680442735797,3.47911327,1817.5,1817.0,3.2078]
[1680442737204,3.47911327,1817.5,1816.8,4.2078]
[1680442737908,3.47911327,1817.5,1817.0,3.2078]
[1680442741311,3.47911327,1817.5,1817.0,3.78141479]
[1680442743109,3.47911327,1817.5,1816.9,1.43403697]
[1680442743406,4.05546502,1817.5,1817.0,0.57361479]
[1680442743709,3.2078,1817.3,1817.0,0.57361479]
[1680442744804,3.2078,1817.3,1816.9,1.43403697]
[1680442745010,1.0,1817.2,1816.9,0.57361479]
[1680442745211,3.2078,1817.1,1816.8,1.43403697]
[1680442745412,3.2078,1817.1,1816.9,0.57361479]
[1680442745606,3.2078,1817.1,1816.8,0.57361479]
[1680442749110,0.28972502,1817.0,1816.8,0.57361479]
[1680442751606,0.28972502,1817.0,1816.7,1.43403697]
[1680442751916,0.28972502,1817.0,1816.8,0.57361479]
[1680442752512,0.28972502,1817.0,1816.7,0.57361479]
[1680442752911,0.28972502,1817.0,1816.7,1.43403697]
[1680442753508,0.28972502,1817.0,1816.8,1.57361479]
[1680442753815,0.28972502,1817.0,1816.9,1.43403697]
[1680442754015,3.2078,1817.4,1816.9,0.86042218]
[1680442754211,3.2078,1817.4,1817.1,3.2078]
[1680442754404,0.23441345,1817.3,1817.0,1.57249314]
[1680442754609,0.23441345,1817.3,1817.2,4.2078]
[1680442754809,0.002,1817.6,1817.2,4.2078]
[1680442755017,0.002,1817.6,1817.3,1.0]
[1680442755415,0.002,1817.6,1817.2,4.78029314]
[1680442755618,0.002,1817.6,1817.2,3.2078]
[1680442755815,0.002,1817.6,1817.3,1.0]
[1680442756010,0.002,1817.6,1817.4,3.2078]
[1680442756312,0.002,1817.6,1817.5,1.0]
[1680442756514,3.78615175,1817.6,1817.1,4.78029314]
[1680442756711,0.57635175,1817.5,1817.0,1.57249314]
[1680442757012,1.0,1817.5,1817.0,0.57249314]
[1680442757216,1.57635175,1817.5,1817.0,0.57249314]
[1680442758315,3.2078,1817.4,1817.0,0.57249314]
[1680442759319,3.2078,1817.4,1817.0,1.43291532]
[1680442760510,3.2078,1817.4,1817.0,0.57249314]
[1680442761323,3.78415175,1817.4,1817.1,0.57249314]
[1680442762325,3.2078,1817.2,1817.1,0.57249314]
[1680442764217,3.42424123,1817.2,1817.1,0.57249314]
[1680442765118,0.21644123,1817.2,1817.1,1.43291532]
[1680442765413,0.57635175,1817.4,1817.1,0.86042218]
[1680442765613,0.57635175,1817.4,1817.2,0.57397712]
[1680442766815,1.43677287,1817.4,1817.1,0.57397712]
[1680442767121,0.57635175,1817.3,1817.1,1.4343993]
[1680442767726,0.57635175,1817.3,1817.2,0.57397712]
[1680442768723,0.57635175,1817.3,1817.1,1.4343993]
[1680442769031,0.57635175,1817.3,1817.2,0.57397712]
[1680442769921,3.78415175,1817.3,1817.2,0.57397712]
[1680442771029,4.64457287,1817.3,1817.2,0.57397712]
[1680442771229,4.06822112,1817.3,1817.2,0.57397712]
[1680442772225,4.36268025,1817.3,1817.1,1.4343993]
[1680442772432,1.86507597,1817.2,1817.0,0.57397712]
[1680442772733,3.78451818,1817.1,1817.0,0.57397712]
[1680442773338,3.78451818,1817.1,1817.0,1.43513934]
[1680442773634,3.78451818,1817.1,1817.0,1.43515323]
[1680442773835,3.78451818,1817.1,1817.0,0.86042218]
[1680442774033,0.57671818,1817.1,1817.0,0.86042218]
[1680442779546,0.79370211,1817.1,1817.0,0.86042218]
[1680442779838,4.00150211,1817.1,1817.0,0.86042218]
[1680442781248,3.42478393,1817.1,1816.8,0.57466834]
[1680442781544,0.57681806,1817.0,1816.9,0.57466834]
[1680442781744,1.57681806,1817.0,1816.9,0.57466834]
[1680442781944,1.44204176,1817.0,1816.9,0.57466834]
[1680442782145,0.57681806,1817.0,1816.9,0.57466834]
[1680442782444,1.44204176,1817.0,1816.9,0.57466834]
[1680442782636,0.57681806,1817.0,1816.9,0.57466834]
[1680442783845,0.57681806,1817.0,1816.9,1.57466834]
[1680442784046,3.78461806,1817.0,1816.9,2.43509052]
[1680442784251,3.78461806,1817.0,1816.9,1.43509052]
[1680442784547,3.78461806,1817.0,1816.9,1.43497731]
[1680442785445,3.78461806,1817.0,1816.9,0.86042218]
[1680442785750,0.79380199,1817.1,1816.9,0.86042218]
[1680442785945,0.79380199,1817.1,1817.0,0.5745187]
[1680442786155,0.21698393,1817.1,1817.0,2.14999934]
[1680442786348,0.57681806,1817.4,1817.0,3.12561175]
[1680442786642,0.57681806,1817.4,1817.3,0.57421619]
[1680442787849,1.44204176,1817.5,1817.3,1.43554047]
[1680442788850,0.57681806,1817.5,1817.3,0.57421619]
[1680442789046,1.44204176,1817.5,1817.3,0.57421619]
[1680442789241,0.57681806,1817.4,1817.3,0.57421619]
[1680442790244,1.44204176,1817.5,1817.3,0.57421619]
[1680442790544,0.57681806,1817.5,1817.4,0.57421619]
[1680442791746,0.57681806,1817.5,1817.3,1.43554047]
[1680442792046,0.57681806,1817.5,1817.4,0.57421619]
[1680442792253,0.57681806,1817.5,1817.3,1.43554047]
[1680442793747,0.57681806,1817.5,1817.3,0.57421619]
[1680442794051,4.0730237,1817.4,1817.1,0.57421619]
[1680442794249,0.5763246,1817.3,1817.1,0.57421619]
[1680442794548,1.0,1817.2,1817.1,0.57421619]
[1680442794750,1.5763246,1817.2,1817.1,0.57421619]
[1680442794950,4.7841246,1817.2,1817.1,0.57421619]
[1680442795152,4.7841246,1817.2,1817.0,1.43554047]
[1680442795352,4.7841246,1817.2,1817.0,0.57421619]
[1680442796459,4.7841246,1817.2,1817.0,1.43554047]
[1680442796747,4.7841246,1817.2,1817.0,0.57421619]
[1680442796951,3.7841246,1817.2,1817.0,0.57421619]
[1680442798649,3.7841246,1817.2,1817.0,1.43554047]
[1680442805361,0.002,1817.1,1817.0,1.43554047]
[1680442806554,0.002,1817.1,1817.0,0.57421619]
[1680442807053,0.002,1817.1,1817.0,0.86132428]
[1680442807859,0.002,1817.1,1817.0,1.43551198]
[1680442808158,0.002,1817.1,1817.0,0.86132428]
[1680442808662,0.002,1817.1,1817.0,0.57419309]
[1680442808962,0.002,1817.1,1817.0,1.43551737]
[1680442809365,0.5783246,1817.1,1817.0,0.57419309]
[1680442809563,1.5783246,1817.1,1817.0,0.57419309]
[1680442813966,1.5783246,1817.1,1816.9,1.43551737]
[1680442814665,1.5783246,1817.1,1816.9,0.57419309]
[1680442814860,1.5783246,1817.1,1816.9,1.43551737]
[1680442815457,0.5783246,1817.1,1816.9,1.43551737]
[1680442815662,0.5783246,1817.1,1816.9,0.57419309]
[1680442815861,1.5783246,1817.1,1816.9,0.57419309]
[1680442816166,1.5783246,1817.1,1817.0,0.57419309]
[1680442816167,0.5783246,1817.1,1817.0,0.57419309]
[1680442816769,0.002,1817.1,1817.0,0.57419309]
[1680442817668,0.5783246,1817.1,1817.0,0.57419309]
[1680442818069,0.002,1817.1,1817.0,0.57419309]
[1680442818269,0.5783246,1817.1,1817.0,0.57419309]
[1680442818672,0.002,1817.1,1817.0,0.57419309]
[1680442819174,0.5783246,1817.1,1817.0,0.57419309]
[1680442819570,0.002,1817.1,1817.0,0.57419309]
[1680442820079,0.5783246,1817.1,1817.0,0.57419309]
[1680442822681,0.002,1817.1,1817.0,0.57419309]
[1680442822877,0.5783246,1817.1,1817.0,0.57419309]
[1680442823374,0.002,1817.1,1817.0,0.57419309]
[1680442823570,0.002,1817.1,1817.0,0.86132428]
[1680442830384,0.002,1817.1,1817.0,1.14843237]
[1680442830681,0.002,1817.1,1817.0,5.79940823]
[1680442830979,0.002,1817.1,1817.0,3.8902409]
[1680442831182,0.002,1817.1,1817.0,5.01020292]
[1680442831875,0.002,1817.1,1817.0,6.44452741]
[1680442832783,0.002,1817.1,1817.0,5.01020292]
[1680442833278,0.002,1817.1,1817.0,6.44436]
[1680442833986,0.002,1817.1,1817.0,5.01020292]
[1680442835176,0.002,1817.1,1817.0,6.44423952]
[1680442835371,0.002,1817.1,1817.0,5.44423952]
[1680442837881,0.002,1817.1,1817.0,2.23643952]
[1680442838084,0.002,1817.1,1817.0,5.44423952]
[1680442838778,0.002,1817.1,1817.0,2.23643952]
[1680442839084,0.002,1817.1,1817.0,1.95014597]
[1680442839583,0.002,1817.1,1817.0,1.26770507]
[1680442839981,0.002,1817.1,1817.0,1.9501301]
[1680442840578,0.002,1817.1,1817.0,1.26770507]
[1680442853393,0.002,1817.1,1817.0,0.11996202]
[1680442853587,0.002,1817.1,1817.0,1.26770507]
[1680442854893,0.002,1817.1,1817.0,0.11996202]
[1680442855098,0.002,1817.1,1817.0,0.98097002]
[1680442857699,0.002,1817.1,1817.0,0.11996202]
[1680442863400,0.002,1817.1,1817.0,1.26770507]
[1680442864002,0.002,1817.1,1817.0,0.11996202]
[1680442865207,0.002,1817.1,1817.0,1.26770507]
[1680442873519,0.002,1817.1,1817.0,0.11996202]
[1680442876419,0.002,1817.1,1817.0,2.26770507]
[1680442877115,0.002,1817.1,1817.0,1.26770507]
[1680442877506,0.002,1817.1,1817.0,4.47550507]
[1680442878509,0.002,1817.1,1817.0,1.26770507]
[1680442879425,0.002,1817.1,1817.0,1.95016301]
[1680442879622,0.002,1817.1,1817.0,5.44425656]
[1680442879916,0.5763246,1817.4,1817.1,0.00134333]
[1680442880116,0.5763246,1817.4,1817.3,0.86146276]
[1680442880314,0.5763246,1817.4,1817.3,0.96234652]
[1680442881314,1.4415483,1817.4,1817.3,0.96234652]
[1680442881534,0.8652237,1817.4,1817.3,0.96234652]
[1680442882236,1.44224065,1817.4,1817.3,0.96234652]
[1680442882630,0.57701695,1817.4,1817.3,0.96234652]
[1680442883134,0.57701695,1817.4,1817.3,0.10088376]
[1680442883529,0.57701695,1817.4,1817.3,1.10088376]
[1680442883724,0.57701695,1817.4,1817.3,2.24950077]
[1680442884132,1.44224065,1817.5,1817.3,2.24950077]
[1680442884428,1.44224065,1817.5,1817.4,0.86131381]
[1680442886337,0.57701695,1817.5,1817.4,0.86131381]